Cogmind - Beta 17 *** ADVENTURER MODE // 2026.07.17 @ 02:32:19 Player: Stainfree Result: Destroyed by OW-NW2(R) with Subdweller Machine Gun Performance ------------- Evolutions (0) 0 Regions Visited (3) 600 Robots Destroyed (32) 160 Value Destroyed (613) 613 Prototype IDs (3) 60 Alien Tech Used (0) 0 Bonus (0) 0 TOTAL SCORE: 1433 Bonus ------- None Cogmind --------- Core Integrity 0/250 Matter 248/300 Energy 265/265 System Corruption 0% Temperature Cool (0) Movement Rolling (110) Ox2 Location -10/Subcaves Parts ------- > --- POWER (1) -------- Improved Ion Engine > --- PROPULSION (2) --- Wheel > --- UTILITY (2) ------ Medium Storage Unit Targeting Computer > --- WEAPON (2) ------- Grenade Launcher Heavy Hammer > --- INVENTORY (10) --- Aluminum Leg Compact Matter Pod (150) Experimental Sensor Array Targeting Computer Light Armor Plating Heavy Assault Rifle Grenade Launcher Proton Bomb Trap Peak State ------------ > --- POWER ------------ Improved Ion Engine > --- PROPULSION ------- Light Treads Light Treads > --- UTILITY ---------- Medium Storage Unit Targeting Computer > --- WEAPON ----------- Heavy Assault Rifle Heavy Hammer > --- INVENTORY -------- Light Ion Engine Wheel Compact Matter Pod Experimental Sensor Array Targeting Computer Light Armor Plating Grenade Launcher Grenade Launcher Proton Bomb Trap Proton Bomb Trap [Rating: 12] Favorites ----------- Power Light Ion Engine Engine Light Ion Engine Propulsion Aluminum Leg Treads Light Treads Leg Aluminum Leg Wheel Wheel Utility Targeting Computer Storage Medium Storage Unit Processor Targeting Computer Weapon Heavy Hammer Energy Gun Small Laser Ballistic Gun Heavy Assault Rifle Launcher Grenade Launcher Impact Weapon Heavy Hammer Build | -11 -10 -10 -10 ------- Run | Yrd Mat Min Sub Slots Evolved . | . . . . Power . | . . . . Propulsion . | . . . . Utility . | . . . . Weapon . | . . . . Parts Attached 19 | 7 4 7 1 Power 3 | 1 . 2 . Engine 3 | 1 . 2 . Core . | . . . . Reactor . | . . . . Propulsion 6 | 3 . 3 . Treads 2 | . . 2 . Leg 3 | 2 . 1 . Wheel 1 | 1 . . . Hover . | . . . . Flight . | . . . . Utility 4 | 1 3 . . Device . | . . . . Storage 2 | 1 1 . . Processor 2 | . 2 . . Hackware . | . . . . Protection . | . . . . Artifact . | . . . . Weapon 6 | 2 1 2 1 Energy Gun 1 | 1 . . . Energy Cannon . | . . . . Ballistic Gun 3 | 1 . 2 . Ballistic Cannon . | . . . . Launcher 1 | . . . 1 Special Weapon . | . . . . Impact Weapon 1 | . 1 . . Slashing Weapon . | . . . . Piercing Weapon . | . . . . Special Melee Weapon . | . . . . Unidentified Prototypes . | . . . . Parts Lost 7 | . . 5 2 Power 2 | . . 2 . Propulsion 4 | . . 2 2 Utility . | . . . . Weapon 1 | . . 1 . Highest Loss Streak 2 | . . 2 1 To Critical Strikes 1 | . . . 1 Average Backups 6 | 1 3 8 7 Power . | . . . . Propulsion 2 | 1 2 2 1 Utility 2 | . . 3 4 Weapon 1 | . . 2 2 Tool/Special . | . . . . Unused Backups 9 | . 1 3 5 Power 1 | . . 1 . Propulsion 2 | . . 2 . Utility 4 | . . . 4 Weapon 2 | . 1 . 1 Tool/Special . | . . . . Average Slot Usage (%) 97 | . 96 98 98 Engine 13 | . 14 12 14 Treads 12 | . . 18 16 Leg 14 | . 28 9 . Storage 13 | . 13 14 14 Processor 12 | . 10 14 14 Energy Gun 5 | . 14 . . Ballistic Gun 10 | . 9 13 2 Launcher 1 | . . . 11 Impact Weapon 10 | . 4 14 14 Peak Build Rating 12 | 6 8 12 12 Average Rating 9 | 3 7 11 11 On Entrance 6 | . 6 8 12 Avg Prop Armor Cover (%) 13 | . . 16 13 Naked Turns . | . . . . Heaviest Build 23 | 11 17 23 23 Greatest Support 40 | 20 20 40 40 Greatest Overweight (x) 2 | . . 1 2 Average Overweight (x) . | . . . 1 Largest Inventory Capacity 10 | 8 10 10 10 Average Capacity 9 | 6 8 10 10 Most Carried 10 | 5 8 10 10 Average Carried 7 | 1 3 9 9 Final Capacity 10 | 8 10 10 10 Final Carried 10 | 1 7 10 8 Class Distribution -------------------- 61% | Mutant 38% | Scavenger-Mutant Dominant Class ---------------- Mutant | -10/Materials Scavenger-Mutant | -10/Mines Mutant | -10/Subcaves Resources | -11 -10 -10 -10 ----------- Run | Yrd Mat Min Sub Matter Collected 570 | 246 184 102 38 Remotely . | . . . . Salvage Created 1051 | . 493 449 109 Parts 50 | . 32 12 6 Haulers Intercepted 1 | . 1 . . Recyclers Shooed 2 | . 1 1 . Parts Field Recycled . | . . . . Retrieved Matter . | . . . . Parts Self-Destructed 5 | . . . 5 Prevented . | . . . . Parts Restored . | . . . . Kills | -11 -10 -10 -10 ------- Run | Yrd Mat Min Sub Combat Hostiles Destroyed 17 | . 6 8 3 Melee 4 | . . 4 . Guns 7 | . 6 1 . AOE 3 | . . . 3 Classes Destroyed 10 | . 6 2 2 Worker 2 | . . 2 . Builder 2 | . 1 1 . Tunneler 4 | . . 4 . Hauler 1 | . 1 . . Recycler 4 | . 3 1 . Watcher 2 | . 2 . . Swarmer 5 | . 2 3 . Grunt 9 | . 4 5 . Artisan 1 | . . . 1 Subdweller 3 | . . . 3 Best Kill Streak 4 | . 4 3 2 Combat Bots Only 4 | . 4 3 2 Max Kills in Single Turn 1 | . 1 1 1 Gunslinging . | . . . . Exploded 1 | . . . 1 Melee 1 | . . 1 . Uniques/NPCs Destroyed . | . . . . Combat | -11 -10 -10 -10 -------- Run | Yrd Mat Min Sub Hostile Shots Fired 130 | . 32 62 36 Missed 33 | . 14 11 8 Hits 97 | . 18 51 28 Projectile 97 | . 18 51 28 Critical Strikes 3 | . . 2 1 Damage Taken 1094 | . 174 450 470 Core 261 | . 13 72 176 Absorbed by Shields . | . . . . Ignored by Resistances 329 | . 55 140 134 Core Remaining (%) 100 | 100 . . . Volleys Fired 53 | . 40 5 8 Largest 2 | . 2 1 1 Hottest 60 | . 60 23 30 Shots Fired 88 | . 75 5 8 Gun 80 | . 75 5 . Cannon . | . . . . Launcher 8 | . . . 8 Special . | . . . . Kinetic 45 | . 40 5 . Thermal 35 | . 35 . . Explosive 8 | . . . 8 Electromagnetic . | . . . . Robot Hit Streak 16 | . 16 2 10 Robot Miss Streak 3 | . 3 1 . Penetration Max . | . . . . Secondary Targets . | . . . . Shots Hit Robots 92 | . 48 31 13 Core Hits 31 | . 21 3 7 Critical Kills 2 | . 2 . . Critical Parts Destroyed 5 | . . 5 . Critical Strikes 7 | . 2 5 . Smash 7 | . 2 5 . Melee Attacks 49 | . 5 36 8 Impact 49 | . 5 36 8 Slashing . | . . . . Piercing . | . . . . Sneak Attacks 10 | . 2 8 . Combat Hostiles . | . . . . Follow-up Attacks . | . . . . Damage Inflicted 2533 | . 713 1291 529 Guns 624 | . 571 53 . Cannons . | . . . . Explosions 447 | . . . 447 Melee 1462 | . 142 1238 82 Ramming . | . . . . Kinetic 403 | . 350 53 . Thermal 221 | . 221 . . Explosive 447 | . . . 447 Electromagnetic . | . . . . Impact 1462 | . 142 1238 82 Slashing . | . . . . Piercing . | . . . . Highest Corruption . | . . . . Average Corruption . | . . . . Corruption Purged . | . . . . Corruption Blocked . | . . . . Overload Shots . | . . . . Overflow Damage 522 | . . 522 . Projectiles . | . . . . Explosions . | . . . . Melee 522 | . . 522 . Knockbacks 11 | . . 9 2 Impact 10 | . . 8 2 Kinetic . | . . . . Secondary 1 | . . 1 . Self-Inflicted Damage . | . . . . Shots . | . . . . Rammed . | . . . . Targets Rammed . | . . . . Kicked . | . . . . Crushed . | . . . . Highest Temperature 36 | . 36 9 . Average Temperature 22 | . 25 5 . Received Heat Transfer 441 | . 66 273 102 Siege Activations . | . . . . Martial Activations . | . . . . Shielding Activations . | . . . . Robots Disrupted . | . . . . Combat Hostiles . | . . . . Robots Corrupted 9 | . . 9 . Combat Hostiles 3 | . . 3 . Parts Fried 18 | . . 18 . Impact Corruptions 20 | . . 20 . Robots Melted . | . . . . Combat Hostiles . | . . . . Parts Melted . | . . . . Heat Transferred 500 | . 500 . . Parts Sabotaged . | . . . . Parts Stolen . | . . . . Parts Stripped . | . . . . Power Chain Reactions . | . . . . Alert | -11 -10 -10 -10 ------- Run | Yrd Mat Min Sub Maximum Alert Level . | . . . . Low Security (%) 100 | 100 100 100 . Level 1 . | . . . . Level 2 . | . . . . Level 3 . | . . . . Level 4 . | . . . . Level 5 . | . . . . High Security . | . . . . Max Security . | . . . . Peak Influence 115 | . 115 55 . Initial . | . . . . Average 12 | . 24 6 . Influence Increases 493 | . 223 270 . Destroy 0b10 Robot/C 280 | . 120 160 . Destroy 0b10 Robot/NC 75 | . 35 40 . Destroy Leader 56 | . 26 30 . Trap Triggered on 0b10 10 | . . 10 . Successful Hack 38 | . 38 . . Destroy Structure 4 | . 4 . . Lose Combat Pursuer 30 | . . 30 . Influence Decreases 493 | . 222 271 . Entered New Map 1 | . . 1 . Time Decay 462 | . 222 240 . Lost Part 30 | . . 30 . Squads Dispatched 1 | . 1 . . Investigation 1 | . 1 . . Extermination . | . . . . Reinforcement . | . . . . Assault . | . . . . Garrison . | . . . . Intercept . | . . . . Searches Triggered . | . . . . Construction Impeded . | . . . . Haulers Reinforced . | . . . . Active Scanning Responses . | . . . . Cargo Convoy Interrupts . | . . . . Stealth | -11 -10 -10 -10 --------- Run | Yrd Mat Min Sub Distress Signals 1 | . 1 . . Communications Jammed . | . . . . Distress Signals . | . . . . Times Spotted 28 | . 13 11 4 Peak Tracking Total 3 | . 3 3 2 Tactical Retreats 2 | . . 2 . Traps | -11 -10 -10 -10 ------- Run | Yrd Mat Min Sub Traps Triggered 1 | . 1 . . Indirectly . | . . . . Trap Hack Attempts . | . . . . Triggered . | . . . . Disarmed . | . . . . Reprogrammed . | . . . . Reused 1 | . . 1 . Traps Extracted . | . . . . Installed 2 | . . 1 1 Triggered 1 | . . 1 . Most Traps Carried 3 | . . 3 2 Machines | -11 -10 -10 -10 ---------- Run | Yrd Mat Min Sub Machines Disabled . | . . . . Max in Single Turn . | . . . . Machines Repaired . | . . . . Machines Dismantled . | . . . . Machines Sabotaged . | . . . . Overloaded Fab Kills . | . . . . Hacking | -11 -10 -10 -10 --------- Run | Yrd Mat Min Sub Machines Accessed 8 | . 8 . . Terminals 7 | . 7 . . Fabricators . | . . . . Repair Stations . | . . . . Recycling Units 1 | . 1 . . Scanalyzers . | . . . . Garrison Access . | . . . . Total Hacks 21 | . 21 . . Successful 9 | . 9 . . Failed 12 | . 12 . . Catastrophic . | . . . . Database Lockouts . | . . . . Manual 13 | . 13 . . Terminals 19 | . 19 . . Fabricators . | . . . . Repair Stations . | . . . . Recycling Units 2 | . 2 . . Scanalyzers . | . . . . Garrison Access . | . . . . Terminal Hacks 5 | . 5 . . Prototype ID Bank 1 | . 1 . . Branch Access Points 1 | . 1 . . Hauler Manifests 1 | . 1 . . Zone Layout 2 | . 2 . . Fabricator Hacks . | . . . . Repair Station Hacks . | . . . . Recycling Unit Hacks 2 | . 2 . . Report Inventory 2 | . 2 . . Scanalyzer . | . . . . Garrison Access Hacks . | . . . . Unauthorized Hacks 2 | . 2 . . Terminals 2 | . 2 . . Track 1 | . 1 . . Botnet 1 | . 1 . . Fabricators . | . . . . Repair Stations . | . . . . Recycling Units . | . . . . Scanalyzers . | . . . . Garrison Access . | . . . . Data Cores Recovered . | . . . . Used . | . . . . Hacking Detections 6 | . 6 . . Full Trace Events 1 | . 1 . . Feedback Events . | . . . . Feedback Blocked . | . . . . Robot Schematics Acquired . | . . . . Robots Built . | . . . . Authchips . | . . . . Time . | . . . . Total Robot Build Rating . | . . . . Part Schematics Acquired . | . . . . Parts Built . | . . . . Authchips . | . . . . Time . | . . . . Total Part Build Rating . | . . . . Part Studies Acquired . | . . . . Parts Repaired . | . . . . Time . | . . . . Parts Recycled . | . . . . Recycled Matter . | . . . . Retrieved Matter . | . . . . Retrieved Components . | . . . . Parts Scanalyzed . | . . . . Part Schematics Acquired . | . . . . Parts Damaged . | . . . . Bothacking | -11 -10 -10 -10 ------------ Run | Yrd Mat Min Sub Used RIF Installer . | . . . . Robots Hacked . | . . . . Non-combat . | . . . . Combat . | . . . . Robot Hacks Applied . | . . . . Relay Couplers Released . | . . . . Fabnet Peak Effective % . | . . . . Robots Rewired . | . . . . Allies Hacked . | . . . . Hacks Repelled . | . . . . Allies | -11 -10 -10 -10 -------- Run | Yrd Mat Min Sub Total Allies . | . . . . Largest Group . | . . . . Highest-Rated Group . | . . . . Highest-Rated Ally . | . . . . Total Orders . | . . . . Ally Attacks . | . . . . Total Damage . | . . . . Kills . | . . . . Allies Corrupted . | . . . . Allies Melted . | . . . . Intel | -11 -10 -10 -10 ------- Run | Yrd Mat Min Sub Active Infowar (turns) 255 | . 255 . . Optics 255 | . 255 . . Robot Analysis Total . | . . . . Derelict Logs Recovered 1 | . . 1 . Drone Launches . | . . . . Drone Recoveries . | . . . . Exploration | -11 -10 -10 -10 ------------- Run | Yrd Mat Min Sub Turns Passed 2472 | 59 834 1366 213 Spaces Moved 1505 | 53 574 731 147 Core 26 | 26 . . . Treads 469 | . . 454 15 Legs 875 | 27 574 274 . Wheels 135 | . . 3 132 Hover . | . . . . Flight . | . . . . Fastest Speed 50 | 50 120 95 110 Average Speed 130 | 85 120 144 116 Slowest Speed 240 | 120 120 160 240 Overloaded Moves . | . . . . Propulsion Burnouts . | . . . . Robots Hopped . | . . . . Potential Cave-ins . | . . . . Cave-ins Triggered . | . . . . Exploration Rate (%) 51 | 4 96 99 8 Regions Visited 3 Branch Regions 2 Pre-discovered Areas 1 | . . . 1 Known Exits Taken 1 | . 1 . . Unknown Exits Taken 2 | 1 . 1 . Scrap Searched 1 | . . 1 . Spaces Dug 4 | . 3 1 . Terrain Destroyed 31 | . 3 1 27 Melee 4 | . 3 1 . Projectile . | . . . . AOE 27 | . . . 27 Terrain Rammed . | . . . . Walls Destroyed . | . . . . Machines Disabled . | . . . . Actions | -11 -10 -10 -10 --------- Run | Yrd Mat Min Sub Total 1841 | 66 635 973 167 Wait 172 | . . 172 . Move 1502 | 52 573 730 147 Hop . | . . . . Pick Up 28 | 6 10 12 . Fast Attach 5 | 1 1 3 . Attach 11 | 6 1 3 1 Detach 1 | 1 . . . Swap 6 | . 2 3 1 Drop 12 | . 3 8 1 Fire 53 | . 40 5 8 Melee 49 | . 5 36 8 Ram . | . . . . Kick . | . . . . Crush . | . . . . Escape Stasis . | . . . . Rewire . | . . . . Trap 2 | . . 1 1 Miscellaneous . | . . . . Route ------- -11/Scrapyard -10/Materials (discovered 4 exits: [*Mat x3] / *Min) -10/Mines (discovered 3 exits: [*Mat x2] / [*Sub]) -10/Subcaves History --------- Turn | Location | Event 6 | -11/Scrapyard | Discovered new exit (range 15) 60 | -11/Scrapyard | Entered Materials 196 | -10/Materials | Discovered new exit (range 15) 233 | -10/Materials | Discovered new exit (range 9) 235 | -10/Materials | Identified exit to Mines 308 | -10/Materials | Build established: Mutant 747 | -10/Materials | Discovered new exit (range 5) 860 | -10/Materials | Derelicts attacked the area 894 | -10/Materials | Entered Mines 971 | -10/Mines | Found a damaged Exp. Sensor Array with a note attached 974 | -10/Mines | Found Prototype Device 977 | -10/Mines | Learned location of 1 exit from Materials 1089 | -10/Mines | Found a hidden stash of uninstalled traps 1316 | -10/Mines | Discovered new exit (range 9) 1327 | -10/Mines | Joined a pair of Derelicts in attacking an 0b10 outpost 1649 | -10/Mines | Build established: Scavenger-Mutant 1665 | -10/Mines | Discovered new exit (range 5) 1786 | -10/Mines | Discovered new exit (range 8) 2260 | -10/Mines | Entered Subcaves 2261 | -10/Subcaves | Approached by a straggling Scientist 2263 | -10/Subcaves | Ambushed by Subdwellers from Twisted Machinery 2277 | -10/Subcaves | Core integrity fell below 50% 2289 | -10/Subcaves | Core integrity fell below 20% 2366 | -10/Subcaves | Learned location of Zion (-6) 2366 | -10/Subcaves | Met a Zionite searching for "candidates" 2473 | -10/Subcaves | Destroyed by OW-NW2(R) with Subdweller Machine Gun Last Messages --------------- 02330_ GJ-MBI(R) destroyed. 02333_ IH-OLS(z): "She is not going to be happy we haven't found any suitable candidates yet." 02333_ The unstable cave ceiling collapses. 02336_ Acquired 38 matter. 02342_ The unstable cave ceiling collapses. 02344_ Disposable Heat Sink crushed. R2-U7Y(c): "I think it's somewhere east of here" 02366_ IH-OLS(z): "Hey you! It's really dangerous down here, I feel that you could die at any moment. For your health and safety might I suggest a trip to Zion?" World map updated: -6/Zion. R2-U7Y(c): "I think it's somewhere east of here" 02454_ JQ-52G(u) builds Twisted Machinery. 02461_ Dropped Proton Bomb Trap. 02461_ Installed Proton Bomb Trap. R2-U7Y(c): "I think it's somewhere east of here" 02469_ R2-U7Y(c) destroyed. 02471_ Critical hit (Destroy). 02471_ Lgt. Treads destroyed. Map ----- +----------------------------------------------------+ | ?????????????????????????????????????????????????? | | ?????????????????????????????????????????????????? | | ?????????????????????????????????????????????????? | | ?????????????????????????????????????????????????? | | ?????????????????????????????????????????????????? | | ?????????????????????????????????????????????????? | | ?????????????????????????????????????????????????? | | ?????????????????????????????????????????????????? | | ?????????????????????????????????????????????????? | | ?????????????????????????????????????????????????? | | ?????????????????????????????????????????????????? | | ?????????????????????????????????????????????????? | | ?????????????????????????????????????????????????? | | ?????????????????????????????????????????????????? | | ?????????????????????????????????????????????????? | | ?????????????????????????????????????????????????? | | ?????????????????????????????????????????????????? | | ????????????????????####?????????????????????????? | | ??????????######???##"""##???????????????????????? | | ?????????## "# ###?# "" #???????????????????????? | | ?????????# """ ?""""" #####???????????????????? | | ?????????# " ""???"" #?######????????????? | | ?????????##""#"#??????# ### ##???????????? | | ?????????#""""#????????# ## ##??????????? | | ??????????# " ##??????## #??????????? | | ??????????##" #####?## @ #??????????? | | ???????????# # ### ###?????????? | | ??????????## ### # #?????????? | | ?????????## ^ = #?## #?????????? | | ?????????# # # R ## ##?# #?????????? | | ?????????##"""### " #### #?## #?????????? | | ?????????## ""## # #?# ##### #?????????? | | ????????## "### ### #?## ## # #?????????? | | ??????### # " "## ## ##?????????? | | ??????# "" " " ## ##### ### ##?????????? | | ??????# = ##"" ## #??### ##????????? | | ??????# & # #"" ### #???# #????????? | | ??????## # * ##"" ##?? ##???# # #????????? | | ??????# & "##"##???# ????###### #????????? | | ??????# " # "##????## #???????## #????????? | | ??????# %&" " ##?????##???????# ##????????? | | ??????# " ! " " #??????????????# #?????????? | | ??????## "" " " # #??????????????####?????????? | | ???????#"" " "#" ##? #??????????????????????????? | | ???????## "# "##"#??????????????????????????????? | | ???????# "" ##?##??????????????????????????????? | | ???????#" #"" ??????????????????????????????????? | | ???????# " ""??????????????????????????????????? | | ???????## ???????????????????????????????????? | | ????????# ???????????????????????????????????? | +----------------------------------------------------+ Best States ------------- Heat Dissipation 25 Energy Generation 12 Energy Capacity 265 Matter Stores 300 Matter Capacity 300 Sight Range 18 Terrain Scan Density 10 Resistance: KI 20 Resistance: TH 20 Resistance: EX 20 Resistance: EM 20 Resistance: I 20 Resistance: S 20 Resistance: P 20 Evasion (%) 55 Targeting Accuracy 5 Recoil Reduction 2 Offensive Hacking 10 Item Schematics ----------------- None Robot Schematics ------------------ None Fabricated ------------ Nothing Repaired ---------- Nothing Studied --------- None Alien Tech Used ----------------- None Achievements -------------- None Challenges ------------ None Game ------ Seed RecyclingGunDriveblaster Manual? 0 Play Time 00:33:19 Cumulative 151.8 hours Start 2026.07.17 @ 00:30:46 End 2026.07.17 @ 02:32:19 Sessions 2 Manual Loads 0 Difficulty Adventurer Special Mode None Game No. 23 Rogue 15 Adventurer 8 Explorer 0 Win Type - Total 9 Types 6/0/2/0/0/0/0/0/0/1 Lore% 43 Gallery% 47 Achievement% 42 Wizard Run 0 Options --------- Layout 1 ASCII 0 Keyboard 0 Movement Mouse Keybinds 0 Fullscreen 2 Font 32/SmallcapsGlow Map View 77x35 Zoom Use 0% Tactical HUD 1 Map Filters NONE Filters NONE Steam 1 RUN: 9afe1319-b8e9-4a83-8783-f1ca27fa761a